bitfinex/quotes_SOLUSD_20260304
["timestamp","ask_amount","ask_price","bid_price","bid_amount"]
[1772616766921,3.40949906,90.609,90.58,0.16521274]
[1772616767125,3.37540406,90.623,90.58,11.17066294]
[1772616767323,3.37540406,90.639,90.581,4.21849302]
[1772616767913,11.03204809,90.645,90.581,4.21849302]
[1772616768312,8.37857643,90.65,90.58,38.77057462]
[1772616768313,11.03153344,90.65,90.586,4.1043981]
[1772616768532,55.13552561,90.686,90.585,3.69383402]
[1772616768533,3.37540406,90.684,90.594,4.38872124]
[1772616768727,3.37540406,90.684,90.598,3.69383402]
[1772616769026,3.37540406,90.679,90.612,4.1043981]
[1772616770226,11.02803326,90.678,90.614,4.1043981]
[1772616770430,3.37540406,90.677,90.614,4.1043981]
[1772616770811,38.59811641,90.678,90.614,4.1043981]
[1772616770812,3.37540406,90.659,90.614,4.1043981]
[1772616771928,3.37540406,90.659,90.603,42.73446553]
[1772616772233,11.02912792,90.669,90.606,4.1043981]
[1772616772416,3.69383402,90.726,90.605,11.03691849]
[1772616772417,11.02861301,90.674,90.609,4.38872124]
[1772616773014,11.0279378,90.679,90.609,4.38872124]
[1772616773534,11.0279378,90.679,90.611,4.38872124]
[1772616774133,3.37540406,90.678,90.611,4.1043981]
[1772616774327,11.02737135,90.684,90.616,4.1043981]
[1772616774533,3.37540406,90.683,90.616,4.1043981]
[1772616774736,11.02737135,90.684,90.616,4.1043981]
[1772616774941,3.37540406,90.683,90.616,4.1043981]
[1772616775242,3.37540406,90.669,90.616,4.1043981]
[1772616775415,11.02737135,90.684,90.616,4.1043981]
[1772616775416,3.37540406,90.683,90.616,4.1043981]
[1772616776130,11.02737135,90.684,90.616,4.1043981]
[1772616776329,8.37857643,90.69,90.618,4.1043981]
[1772616776634,5.00534905,90.69,90.618,4.1043981]
[1772616776839,3.37540406,90.689,90.618,4.1043981]
[1772616777226,38.59215806,90.692,90.618,4.1043981]
[1772616777227,3.37540406,90.669,90.618,4.1043981]
[1772616777636,5.00534905,90.65,90.617,11.03545692]
[1772616777826,5.00534905,90.65,90.612,11.03597354]
[1772616778024,3.37540406,90.669,90.613,4.1043981]
[1772616778338,3.37540406,90.659,90.613,4.1043981]
[1772616778520,3.37540406,90.657,90.614,11.03582227]
[1772616778716,3.37540406,90.649,90.596,4.1043981]
[1772616778937,3.37540406,90.649,90.597,4.1043981]
[1772616779629,11.03046614,90.658,90.597,4.1043981]
[1772616779817,3.37540406,90.649,90.597,4.1043981]
[1772616780533,3.37540406,90.647,90.599,4.1043981]
[1772616780838,11.0302244,90.66,90.599,4.1043981]
[1772616781038,11.02942944,90.667,90.599,4.1043981]
[1772616781524,3.37540406,90.666,90.599,4.1043981]
[1772616782141,11.02942944,90.667,90.599,4.1043981]
[1772616782142,5.00534905,90.64,90.599,4.1043981]
[1772616782934,3.37540406,90.638,90.6,11.03752759]
[1772616783531,3.37540406,90.619,90.581,11.03984279]
[1772616783730,3.37540406,90.619,90.582,4.1043981]
[1772616784436,3.37540406,90.619,90.581,11.03984279]
[1772616785021,3.37540406,90.617,90.575,11.04052794]
[1772616785221,3.37540406,90.609,90.575,11.04052794]
[1772616785422,11.03235734,90.643,90.581,4.1043981]
[1772616785824,41.98849019,90.643,90.581,4.1043981]
[1772616786029,3.37540406,90.639,90.581,4.1043981]
[1772616786638,3.37540406,90.629,90.581,4.1043981]
[1772616787343,3.37540406,90.629,90.573,82.80613426]
[1772616787344,11.03411749,90.628,90.583,4.1043981]
[1772616787548,14.40818244,90.639,90.583,4.1043981]
[1772616787839,3.37540406,90.629,90.583,4.1043981]
[1772616789031,5.00534905,90.61,90.583,4.1043981]
[1772616789543,5.00534905,90.61,90.584,11.03947717]
[1772616789739,5.00534905,90.61,90.584,15.14387527]
[1772616790441,5.00534905,90.61,90.584,11.03947717]
[1772616790633,5.00534905,90.59,90.561,4.1043981]
[1772616790949,5.00534905,90.58,90.561,4.1043981]
[1772616791252,5.00534905,90.59,90.562,4.1043981]
[1772616791452,5.00534905,90.6,90.562,4.1043981]
[1772616791740,5.00534905,90.6,90.564,4.1043981]
[1772616792347,4.82477569,90.69,90.56,0.2]
[1772616792348,5.00534905,90.57,90.56,0.2]
[1772616793441,3.37540406,90.589,90.561,11.04228089]
[1772616793643,11.03764942,90.599,90.564,4.1043981]
[1772616793845,5.00534905,90.62,90.564,4.1043981]
[1772616794036,5.00534905,90.59,90.564,4.1043981]
[1772616794231,5.00534905,90.58,90.564,4.1043981]
[1772616794430,5.00534905,90.58,90.563,11.04203703]
[1772616794631,5.00534905,90.57,90.56,0.2]
[1772616794850,5.00534905,90.57,90.542,11.04459808]
[1772616795051,5.00534905,90.57,90.543,4.1043981]
[1772616795347,5.00534905,90.58,90.543,4.1043981]
[1772616795848,5.00534905,90.57,90.544,11.04435412]
[1772616796041,5.00534905,90.56,90.539,11.04485524]
[1772616796271,5.00534905,90.56,90.531,31.71916984]
[1772616797238,5.00534905,90.56,90.54,11.2447537]
[1772616798634,5.00534905,90.58,90.541,4.25811543]
[1772616798846,5.00534905,90.57,90.541,4.25811543]
[1772616799155,82.72575858,90.661,90.54,0.165905]
[1772616799156,11.04374427,90.549,90.54,0.165905]
[1772616799455,5.00534905,90.55,90.54,0.165905]
[1772616800043,11.04374427,90.549,90.516,11.04775244]
[1772616800243,5.00534905,90.55,90.516,11.04775244]
[1772616801264,11.04374427,90.549,90.516,38.66717883]
[1772616801458,5.00534905,90.55,90.517,4.15719509]
[1772616801646,5.00534905,90.57,90.518,4.15719509]
[1772616801960,5.00534905,90.56,90.518,4.15719509]
[1772616802139,3.34165001,90.549,90.516,11.04775244]
[1772616802455,5.00534905,90.54,90.516,11.04775244]
[1772616802660,5.00534905,90.54,90.505,15.20630839]
[1772616803044,5.00534905,90.54,90.506,4.15719509]
[1772616803361,5.00534905,90.54,90.508,4.15719509]
[1772616803938,11.04496404,90.539,90.507,11.04886914]
[1772616804544,11.04496404,90.539,90.507,15.20606423]
[1772616804954,11.04496404,90.539,90.48,0.2]
[1772616804955,5.00534905,90.53,90.496,5.11155771]
[1772616805154,11.04618409,90.529,90.497,11.05009005]
[1772616805740,11.04618409,90.529,90.498,4.15719509]
[1772616805944,5.00534905,90.52,90.496,0.95436262]
[1772616806242,5.00534905,90.52,90.497,11.05009005]
[1772616806440,5.00534905,90.52,90.496,0.95436262]
[1772616806658,3.34165001,90.519,90.496,0.95436262]
[1772616806864,5.00534905,90.52,90.496,12.00446714]
[1772616807060,14.3878341,90.529,90.496,12.00446714]
[1772616807251,5.00534905,90.52,90.496,12.00446714]
[1772616807965,16.05270699,90.52,90.496,0.95436262]
[1772616808345,3.34165001,90.519,90.496,0.95436262]
[1772616809158,5.00534905,90.51,90.496,0.95436262]
[1772616809355,5.00534905,90.51,90.48,0.2]
[1772616809356,3.3082335,90.509,90.48,0.2]
[1772616809562,5.00534905,90.5,90.48,0.2]
[1772616810068,11.04984585,90.499,90.48,0.2]
[1772616810967,3.27515116,90.532,90.482,4.15719509]
[1772616811168,5.00534905,90.55,90.482,4.15719509]
[1772616811346,38.65054386,90.555,90.482,4.15719509]
[1772616811347,5.00534905,90.53,90.482,4.15719509]
[1772616811858,3.27515116,90.539,90.482,4.15719509]
[1772616812064,5.00534905,90.53,90.484,4.15719509]
[1772616812459,11.04508604,90.538,90.484,4.15719509]
[1772616813250,55.2036321,90.574,90.484,4.15719509]
[1772616813251,11.04374427,90.549,90.484,4.15719509]
[1772616813455,11.04276864,90.557,90.484,4.15719509]
[1772616813655,5.00534905,90.55,90.484,4.15719509]
[1772616813864,11.04130552,90.569,90.487,4.44151823]
[1772616814064,3.27515116,90.568,90.493,4.15719509]
[1772616814464,3.27515116,90.559,90.493,4.15719509]
[1772616815256,38.64456932,90.569,90.493,4.15719509]
[1772616815684,5.00534905,90.56,90.493,4.15719509]
[1772616815861,5.00534905,90.55,90.493,4.15719509]
[1772616816062,11.04374427,90.549,90.495,4.15719509]
[1772616816674,5.00534905,90.54,90.495,4.15719509]
[1772616816877,3.27515116,90.539,90.495,4.15719509]
[1772616818061,3.27515116,90.539,90.494,38.67659733]
[1772616818062,30.88451183,90.549,90.497,4.15719509]
[1772616818255,5.00534905,90.54,90.497,4.15719509]
[1772616818796,3.27515116,90.539,90.497,4.15719509]
[1772616818976,3.27515116,90.529,90.49,11.05086719]
[1772616819172,5.00534905,90.52,90.49,11.05086719]
[1772616819570,3.27515116,90.529,90.49,11.05086719]
[1772616819769,38.65353182,90.548,90.491,4.15719509]
[1772616819770,11.04386623,90.548,90.491,4.15719509]
[1772616820179,14.31901739,90.548,90.493,4.15719509]
[1772616820673,11.0426467,90.558,90.493,4.15719509]
[1772616820881,3.27515116,90.557,90.493,4.15719509]
[1772616821068,5.00534905,90.54,90.493,4.15719509]
[1772616821267,38.64926345,90.558,90.493,4.15719509]
[1772616821268,11.0426467,90.558,90.493,4.15719509]
[1772616821763,14.31779786,90.558,90.493,4.15719509]
[1772616821965,5.00534905,90.53,90.493,4.15719509]
[1772616822160,3.27515116,90.549,90.495,4.15719509]
[1772616822359,5.00534905,90.54,90.495,4.15719509]
[1772616822559,5.00534905,90.53,90.495,4.15719509]
[1772616823462,3.27515116,90.529,90.495,4.15719509]
[1772616823870,5.00534905,90.52,90.484,4.15719509]
[1772616824077,5.00534905,90.52,90.485,11.0515555]
[1772616824276,14.32255557,90.519,90.485,11.0515555]
[1772616824590,5.00534905,90.51,90.485,11.0515555]
[1772616824798,5.00534905,90.51,90.48,0.2]
[1772616825075,0.03275151,90.499,90.463,4.15719509]
[1772616825282,5.00534905,90.5,90.463,4.15719509]
[1772616825463,5.00534905,90.49,90.463,4.15719509]
[1772616826175,5.00534905,90.54,90.427,4.15719509]
[1772616826176,3.07715116,90.468,90.427,4.15719509]
[1772616826383,5.00534905,90.46,90.427,4.15719509]
[1772616827397,5.00534905,90.45,90.427,4.15719509]
[1772616827690,5.00534905,90.45,90.415,4.15719509]
[1772616827865,5.00534905,90.45,90.401,63.30007977]
[1772616827866,5.00534905,90.43,90.42,0.16891766]
[1772616828061,5.00534905,90.43,90.39,4.35719509]
[1772616828062,3.04637964,90.429,90.39,0.2]
[1772616828273,5.00534905,90.41,90.39,0.13937705]
[1772616828485,5.00534905,90.4,90.39,0.10951948]
[1772616829063,2.8970767,90.399,90.354,11.06757863]
[1772616829275,5.00534905,90.4,90.355,4.1501055]
[1772616829582,5.00534905,90.37,90.34,11.06926976]
[1772616829788,2.86810593,90.369,90.326,4.1501055]
[1772616829961,5.00534905,90.38,90.326,4.1501055]
[1772616830280,5.00534905,90.38,90.328,4.1501055]
[1772616830281,11.06574157,90.369,90.328,4.1501055]
[1772616831284,5.00534905,90.38,90.328,4.1501055]
[1772616832174,11.06451719,90.379,90.33,4.1501055]
[1772616832364,11.06219164,90.398,90.33,4.1501055]
[1772616832565,5.00534905,90.39,90.33,4.1501055]
[1772616833377,38.71767074,90.398,90.33,4.1501055]
[1772616833378,5.00534905,90.38,90.33,4.1501055]
[1772616834079,5.00534905,90.37,90.33,4.1501055]
[1772616834274,5.00534905,90.36,90.33,4.1501055]
[1772616834884,5.00534905,90.34,90.315,0.95628633]
[1772616835181,5.00534905,90.35,90.315,0.95628633]
[1772616835402,5.00534905,90.35,90.315,5.10639183]
[1772616836097,38.72666718,90.377,90.317,4.1501055]
[1772616836317,5.00534905,90.36,90.319,4.1501055]
[1772616836467,5.04224977,90.35,90.319,4.1501055]
[1772616836787,5.04224977,90.36,90.319,4.1501055]
[1772616836985,5.04224977,90.36,90.315,0.95628633]
[1772616836986,5.04224977,90.34,90.315,0.95628633]
[1772616837499,5.04224977,90.34,90.315,5.10639183]
[1772616837701,2.86810593,90.368,90.317,4.1501055]
[1772616837912,11.06511208,90.375,90.317,4.1501055]
[1772616838100,5.04224977,90.37,90.317,4.1501055]
[1772616838281,5.04224977,90.36,90.319,4.1501055]
[1772616838689,2.86810593,90.359,90.319,4.1501055]
[1772616838894,11.06574157,90.369,90.319,4.1501055]
[1772616839093,5.04224977,90.36,90.319,4.1501055]
[1772616839383,5.04224977,90.35,90.319,4.1501055]
[1772616839586,5.04224977,90.33,90.315,0.95628633]
[1772616840389,11.06966137,90.337,90.315,0.95628633]
[1772616840609,3.69383402,90.388,90.315,0.95628633]
[1772616840610,5.04224977,90.35,90.315,5.10639183]
[1772616840909,2.86810593,90.357,90.315,5.10639183]
[1772616840910,5.04224977,90.34,90.315,0.95628633]
[1772616842303,5.04224977,90.35,90.315,5.10639183]
[1772616842499,6.8825145,90.407,90.315,5.10639183]
[1772616842500,2.86810593,90.389,90.317,4.1501055]
[1772616842702,5.04224977,90.37,90.317,4.1501055]
[1772616843293,7.9103557,90.38,90.317,4.1501055]
[1772616843496,5.04224977,90.39,90.33,4.1501055]
[1772616843706,2.86810593,90.404,90.319,3.69383402]
[1772616843707,2.86810593,90.404,90.34,4.1501055]
[1772616844006,5.04224977,90.4,90.34,4.1501055]
[1772616844393,11.06206927,90.399,90.342,4.1501055]
[1772616845796,5.04224977,90.39,90.342,4.1501055]
[1772616845996,11.06143281,90.405,90.342,4.1501055]
[1772616846194,5.04224977,90.4,90.342,4.1501055]
[1772616846391,5.04224977,90.4,90.333,3.69383402]
[1772616846392,2.86810593,90.389,90.344,4.1501055]
[1772616846591,5.04224977,90.38,90.344,4.1501055]
[1772616846801,5.04224977,90.37,90.344,4.1501055]
[1772616846999,5.04224977,90.38,90.344,4.1501055]
[1772616847201,5.04224977,90.37,90.333,4.1501055]
[1772616847897,2.86810593,90.379,90.333,4.1501055]
[1772616848113,5.04224977,90.38,90.333,4.1501055]
[1772616848906,5.04224977,90.37,90.335,4.1501055]
[1772616849827,5.04224977,90.36,90.329,4.1501055]
[1772616850201,2.86810593,90.37,90.329,4.1501055]
[1772616850512,5.04224977,90.39,90.332,4.1501055]
[1772616850819,11.06329309,90.389,90.333,38.74553042]
[1772616851020,11.06329309,90.389,90.334,4.1501055]
[1772616851825,30.52144368,90.405,90.334,4.1501055]
[1772616852001,30.52144368,90.405,90.333,38.74553042]
[1772616852002,5.04224977,90.39,90.336,4.1501055]
[1772616852821,11.06145745,90.404,90.34,4.1501055]
[1772616853014,11.05962242,90.419,90.35,4.1501055]
[1772616853210,2.86810593,90.425,90.353,0.28432314]
[1772616853412,11.05901088,90.424,90.36,4.1501055]
[1772616853928,11.05962242,90.419,90.362,4.1501055]
[1772616855132,5.04224977,90.41,90.366,4.1501055]
[1772616855307,5.04224977,90.4,90.366,4.1501055]
[1772616855626,2.86810593,90.409,90.366,4.1501055]
[1772616856120,5.04224977,90.4,90.367,11.06598647]
[1772616856304,11.06096805,90.408,90.367,11.06598647]
[1772616856507,5.04224977,90.4,90.366,4.1501055]
[1772616856710,11.06096805,90.408,90.366,42.88138136]
[1772616856912,11.06096805,90.408,90.367,4.1501055]
[1772616857217,5.04224977,90.41,90.367,4.1501055]
[1772616857416,11.06084571,90.409,90.367,4.1501055]
[1772616857613,16.10052689,90.43,90.369,4.1501055]
[1772616857814,2.86810593,90.429,90.369,4.1501055]
[1772616858015,11.05852169,90.428,90.371,4.1501055]
[1772616859519,2.86810593,90.453,90.375,4.28200435]
[1772616859721,5.04224977,90.45,90.379,4.28200435]
[1772616859913,5.04224977,90.44,90.379,4.28200435]
[1772616860227,11.05717666,90.439,90.381,4.28200435]
[1772616860813,7.9103557,90.43,90.381,4.28200435]
[1772616861017,5.04224977,90.41,90.381,4.28200435]
[1772616861346,2.86810593,90.419,90.381,4.28200435]
[1772616861835,5.04224977,90.41,90.381,4.28200435]
[1772616862533,2.86810593,90.491,90.387,4.46566934]
[1772616862834,18.42073878,90.578,90.382,0.28432314]
[1772616862835,13.91795178,90.499,90.414,3.69383402]
[1772616863144,2.86810593,90.489,90.43,4.46566934]
[1772616863517,6.87161807,90.538,90.439,9.57476817]
[1772616863518,4.27943936,90.536,90.439,9.57476817]
[1772616863723,4.27943936,90.529,90.456,4.46566934]
[1772616864034,4.27943936,90.519,90.456,4.46566934]
[1772616864441,4.27943936,90.536,90.467,4.46566934]
[1772616864624,4.27943936,90.534,90.47,4.46566934]
[1772616864935,4.27943936,90.529,90.47,4.46566934]
[1772616865843,4.27943936,90.529,90.466,38.68856807]
[1772616865844,4.27943936,90.608,90.526,4.46566934]
[1772616866017,4.27943936,90.608,90.471,4.82477569]
[1772616866018,4.27943936,90.608,90.535,4.74999248]
[1772616866344,11.58931623,90.603,90.541,4.46566934]
[1772616866537,11.58931623,90.603,90.543,4.46566934]
[1772616867943,11.58931623,90.603,90.545,4.46566934]
[1772616868831,4.27943936,90.599,90.545,4.46566934]
[1772616869239,6.88924442,90.629,90.546,4.46566934]
[1772616869540,0.1,90.7,90.574,4.60783091]
[1772616869541,4.27943936,90.655,90.574,4.60783091]
[1772616869842,0.1,90.7,90.594,4.46566934]
[1772616869843,4.27943936,90.649,90.594,4.46566934]
[1772616871127,4.27943936,90.649,90.593,11.03838044]
[1772616871631,4.27943936,90.638,90.584,4.46566934]
[1772616871831,4.27943936,90.629,90.584,4.46566934]
[1772616872440,0.1,90.65,90.588,4.46566934]
[1772616872630,4.27943936,90.696,90.601,4.46566934]
[1772616872833,4.27943936,90.684,90.62,0.28432314]
[1772616873034,4.27943936,90.684,90.627,4.60783091]
[1772616873232,1e-08,90.677,90.629,4.74999248]
[1772616873624,1e-08,90.677,90.631,0.14216157]
[1772616873828,1e-08,90.677,90.632,4.46566934]
[1772616875843,4.27943937,90.677,90.633,11.03350876]
[1772616876043,4.27943936,90.669,90.583,4.46566934]
[1772616876256,1e-08,90.677,90.593,4.46566934]
[1772616876546,6.8448467,90.757,90.633,4.74999248]
[1772616876547,4.27943936,90.731,90.633,4.74999248]
[1772616876748,4.27943936,90.729,90.653,4.74999248]
[1772616876956,4.27943936,90.719,90.653,4.46566934]
[1772616877650,38.5759947,90.73,90.638,4.46566934]
[1772616877651,4.27943936,90.699,90.638,4.46566934]
[1772616877856,4.27943936,90.697,90.64,4.46566934]
[1772616879257,3.69383402,90.747,90.639,38.61472434]
[1772616879258,0.28432314,90.778,90.642,4.46566934]
[1772616879435,5.04224977,90.71,90.642,4.46566934]
[1772616879853,4.27943936,90.707,90.644,4.46566934]
[1772616880059,11.02438594,90.708,90.644,4.46566934]
[1772616880060,4.27943936,90.689,90.644,4.46566934]
[1772616880742,4.27943936,90.689,90.643,11.03229151]
[1772616881055,4.27943936,90.689,90.644,4.46566934]
[1772616881255,4.27943936,90.689,90.643,11.03229151]
[1772616881450,4.27943936,90.689,90.533,44.18256167]
[1772616881451,4.27943936,90.679,90.632,4.46566934]
[1772616881838,4.27943936,90.677,90.633,11.03350876]
[1772616882447,4.27943936,90.677,90.634,4.46566934]
[1772616883165,55.11248886,90.724,90.633,11.03350876]
[1772616883166,44.06383919,90.778,90.637,4.46566934]
[1772616883332,44.06383919,90.778,90.633,93.7848245]
[1772616883333,38.55606646,90.777,90.653,8.30166493]
[1772616883532,5.04224977,90.73,90.661,4.46566934]
[1772616883847,5.04224977,90.73,90.663,4.46566934]
[1772616883848,4.27943936,90.729,90.663,4.46566934]
[1772616884164,4.27943936,90.729,90.662,38.60492819]
[1772616884165,4.27943936,90.729,90.666,4.46566934]
[1772616884540,4.27943936,90.739,90.672,4.46566934]
[1772616884839,4.27943936,90.729,90.672,4.46566934]
[1772616885038,4.27943936,90.719,90.672,4.46566934]
[1772616886038,55.08792032,90.764,90.674,4.46566934]
[1772616886241,11.0158849,90.778,90.691,0.14216157]
[1772616886460,11.0158849,90.778,90.7,4.46566934]
[1772616886760,4.27943936,90.769,90.705,4.46566934]
[1772616887435,4.27943936,90.769,90.711,3.69383402]
[1772616887644,4.27943936,90.798,90.724,4.46566934]
[1772616887954,4.27943936,90.779,90.726,4.46566934]
[1772616888956,4.20816304,90.847,90.729,4.55661719]
[1772616889149,11.00739697,90.848,90.725,93.68972167]
[1772616889150,4.20816304,90.829,90.749,3.69383402]
[1772616889357,4.20816304,90.829,90.754,4.27229405]
[1772616889543,5.04224977,90.82,90.754,4.27229405]
[1772616889750,4.20816304,90.819,90.754,4.27229405]
[1772616889943,4.20816304,90.819,90.755,93.65875157]
[1772616890141,4.20816304,90.819,90.756,4.27229405]
[1772616890538,4.20816304,90.833,90.763,4.27229405]
[1772616890745,4.20816304,90.833,90.765,4.27229405]
[1772616890947,4.20816304,90.829,90.765,4.27229405]
[1772616891164,11.00848754,90.839,90.756,4.27229405]
[1772616891165,4.20816304,90.809,90.756,4.27229405]
[1772616891739,5.04224977,90.79,90.742,27.55058946]
[1772616891945,5.04224977,90.79,90.743,38.57046824]
[1772616892263,4.20816304,90.789,90.743,38.57046824]
[1772616892658,4.20816304,90.856,90.744,4.27229405]
[1772616892865,163.4,90.994,90.753,3.69383402]
[1772616892866,4.20816304,90.893,90.753,3.69383402]
[1772616893177,4.20816304,90.893,90.743,38.57046824]
[1772616893178,4.20816304,90.859,90.793,4.27229405]
[1772616893460,4.20816304,90.849,90.795,4.27229405]
[1772616894164,4.20816304,90.847,90.796,15.28599509]
[1772616894361,4.20816304,90.847,90.797,4.27229405]
[1772616894553,4.20816304,90.829,90.789,11.01452723]
[1772616895064,4.20816304,90.829,90.758,3.69383402]
[1772616895065,4.20816304,90.829,90.778,11.0158849]
[1772616895273,4.20816304,90.829,90.778,38.55559716]
[1772616895563,4.20816304,90.829,90.779,4.27229405]
[1772616895868,4.20816304,90.829,90.778,38.55559716]
[1772616895869,3.69383402,90.888,90.778,38.55559716]
[1772616895870,4.5,90.964,90.957,5.74441776]
[1772616896067,4.20816304,90.96,90.905,7.96612807]
[1772616896256,4.20816304,90.998,90.918,4.27229405]
[1772616896969,4.20816304,90.998,90.92,4.27229405]
[1772616897269,4.2,91.0,90.901,38.50342679]
[1772616897270,4.2,91.0,90.951,4.27229405]
[1772616897769,4.2,91.0,90.926,3.69383402]
[1772616898080,4.2,91.0,90.94,4.27229405]
[1772616898250,15.18912254,91.0,90.94,4.27229405]
[1772616898455,4.2,91.0,90.94,4.27229405]
[1772616898772,4.2,91.0,90.939,38.48733766]
[1772616898773,4.2,91.0,90.948,4.27229405]
[1772616899271,4.20816304,91.009,90.939,38.48733766]
[1772616899676,4.20816304,91.009,90.94,4.27229405]
[1772616900059,4.20816304,90.989,90.925,4.27229405]
[1772616900264,4.20816304,90.989,90.926,4.27229405]
[1772616900578,4.20816304,90.969,90.9,4.27229405]
[1772616901076,4.20816304,90.959,90.891,27.50530853]
[1772616901286,4.20816304,90.959,90.892,4.27229405]
[1772616901456,4.20816304,90.977,90.892,4.27229405]
[1772616901788,4.20816304,91.004,90.896,4.27229405]
[1772616902082,4.20816304,90.997,90.917,4.27229405]
[1772616902290,4.20816304,90.997,90.929,4.27229405]
[1772616902773,4.20816304,90.979,90.911,4.27229405]
[1772616903387,4.20816304,90.979,90.907,38.50088551]
[1772616903388,4.20816304,90.979,90.919,4.27229405]
[1772616903682,4.20816304,90.979,90.907,38.50088551]
[1772616903865,4.20816304,90.979,90.907,11.000253]
[1772616904179,4.20816304,90.979,90.8,44.05275586]
[1772616904180,4.1660814,90.919,90.851,4.27229405]
[1772616904355,4.12442058,90.899,90.834,11.00909351]
[1772616904554,4.12442058,90.889,90.834,9.50292094]
[1772616904863,4.12442058,90.889,90.83,4.27229405]
[1772616904864,4.12442058,90.889,90.814,4.27229405]
[1772616905064,4.12442058,90.869,90.815,11.01139679]
[1772616905370,4.12442058,90.859,90.815,11.01139679]
[1772616905567,4.97237182,90.87,90.815,11.01139679]
[1772616905763,4.12442058,90.869,90.815,11.01139679]
[1772616905958,4.12442058,90.869,90.816,4.27229405]
[1772616906161,11.00497424,90.868,90.817,11.01115429]
[1772616906470,11.00429601,90.874,90.818,4.27229405]
[1772616906658,4.12442058,90.873,90.818,4.27229405]
[1772616907560,55.00137217,90.907,90.818,4.27229405]
[1772616907561,9.14003663,91.158,90.874,15.12871659]
[1772616907758,9.14003663,91.158,90.818,0.14216157]
[1772616907759,10.98044382,91.071,90.939,4.27229405]
[1772616907967,10.98044382,91.071,90.885,3.69383402]
[1772616907968,4.20816304,91.07,90.941,4.27229405]
[1772616908167,4.20816304,91.07,90.885,3.69383402]
[1772616908168,4.20816304,91.049,90.959,4.82477569]
[1772616908481,4.20816304,91.049,90.967,4.82477569]
[1772616908779,4.20816304,91.049,90.966,4.27229405]
[1772616908978,6.81724393,91.077,90.947,93.46102673]
[1772616908979,4.20816304,91.085,90.971,4.27229405]
[1772616909181,65.98393398,91.143,91.001,3.69383402]
[1772616909370,65.98393398,91.143,91.017,3.69383402]
[1772616909572,65.98393398,91.143,91.031,4.27229405]
[1772616910161,65.98393398,91.143,91.033,4.27229405]
[1772616910662,10.97189001,91.142,91.033,4.27229405]
[1772616910862,38.40161505,91.142,91.033,4.27229405]
[1772616911058,38.40161505,91.142,91.032,93.37375865]
[1772616911284,38.40161505,91.142,91.032,38.44801826]
[1772616911485,8.24837597,91.14,91.032,38.44801826]
[1772616911658,8.24837597,91.11,91.032,10.98514807]
[1772616911864,4.20816304,91.109,91.032,10.98514807]
[1772616912065,38.4159459,91.108,91.007,54.9404362]
[1772616912278,4.20816304,91.107,91.008,4.27229405]
[1772616912479,4.20816304,91.107,91.008,3.18652284]
[1772616914288,4.20816304,91.102,91.009,38.45773494]
[1772616914490,3.69383402,91.103,91.01,4.27229405]
[1772616914491,4.20816304,91.089,91.01,4.27229405]
[1772616915470,43.86028414,91.199,91.01,4.27229405]
[1772616915471,16.46393398,91.143,91.01,4.27229405]
[1772616915780,16.46393398,91.143,91.038,4.27229405]
[1772616915964,16.46393398,91.143,91.052,4.27229405]
[1772616916283,16.46393398,91.143,91.054,4.27229405]
[1772616916578,27.43581241,91.143,91.054,4.27229405]
[1772616916783,16.46393398,91.143,91.054,4.27229405]
[1772616916992,10.97189001,91.142,91.054,4.27229405]
[1772616917487,4.20816304,91.142,91.054,4.27229405]
[1772616917786,4.20816304,91.136,91.054,4.27229405]
[1772616917968,4.20816304,91.128,91.054,4.27229405]
[1772616918363,4.20816304,91.128,91.056,4.4015173]
[1772616918780,4.49135694,91.14,91.062,4.4015173]
[1772616920384,4.49135694,91.14,91.063,38.43492965]
[1772616920686,4.49135694,91.14,91.065,5.10909883]
[1772616920883,16.46393398,91.143,91.072,4.54367887]
[1772616921283,4.49135694,91.142,91.072,4.4015173]
[1772616921483,0.14216157,91.138,91.063,38.43492965]
[1772616921673,4.36776344,91.137,91.064,4.48754694]
[1772616922602,16.46393398,91.143,91.072,4.48754694]
[1772616922801,16.46393398,91.143,91.085,4.48754694]
[1772616922802,1e-08,91.143,91.085,4.48754694]
[1772616923102,8.24837597,91.19,91.086,4.48754694]
[1772616923696,3.69383402,91.206,91.086,4.48754694]
[1772616924201,93.19255773,91.209,91.086,4.48754694]
[1772616924498,0.28432314,91.206,91.088,4.48754694]
[1772616924671,0.28432314,91.203,91.088,4.48754694]
[1772616924868,0.14216157,91.195,91.088,4.48754694]
[1772616925089,0.55520579,91.176,91.088,4.48754694]
[1772616925795,0.55520579,91.176,91.102,0.28432314]
[1772616926004,0.55520579,91.206,91.113,4.48754694]
[1772616926415,0.14216157,91.196,91.113,4.48754694]
[1772616926584,0.14216157,91.186,91.115,4.48754694]
[1772616926786,0.55520579,91.177,91.115,4.48754694]
[1772616926990,0.55520579,91.177,91.072,4.82477569]
[1772616926991,0.55520579,91.177,91.106,10.97612657]
[1772616927300,0.55520579,91.213,91.113,4.48754694]
[1772616927476,0.55520579,91.208,91.113,4.48754694]
[1772616927683,0.55520579,91.208,91.125,4.77187008]
[1772616927884,0.55520579,91.208,91.133,4.48754694]
[1772616928513,10.96407074,91.207,91.135,4.48754694]
[1772616928899,0.55520579,91.206,91.135,4.48754694]
[1772616929309,10.96343481,91.213,91.135,4.48754694]